Cogmind - Beta 14 @@@ ROGUE MODE // 2024.08.14 @ 08:22:17 Player: Lillith Result: Destroyed by Y-54 Guardian with Flak Gun Performance ------------- Evolutions (0) 0 Regions Visited (3) 600 Robots Destroyed (32) 160 Value Destroyed (945) 945 Prototype IDs (13) 260 Alien Tech Used (0) 0 Bonus (0) 0 TOTAL SCORE: 1965 Bonus ------- None Cogmind --------- Core Integrity 0/250 Matter 235/300 Energy 280/280 System Corruption 5% Temperature Cool (81) Movement Rolling (210) Ox8 Location -7/Recycling Parts ------- > --- POWER (1) -------- Heavy Ion Engine > --- PROPULSION (2) --- Wheel Compact Wheel > --- UTILITY (2) ------ Humpback > --- WEAPON (2) ------- Barrage Gun Battle Cannon > --- INVENTORY (35) --- Light Ion Engine Heavy Ion Engine Subdweller Power Source Subdweller Power Source Subdweller Power Source Light Treads Light Treads Wheel Compact Wheel Subdweller Monowheel Subdweller Monowheel Subdweller Monowheel Flightbrick Improved Heat Sink Improved Heat Sink Large Storage Unit Humpback Subdweller Optics Hacking Suite Improved Medium Laser Improved Medium Laser Subdweller Laser Subdweller Laser Subdweller Beam Cannon Battle Rifle Flak Gun Improved Light Cannon Improved Light Cannon Subdweller Shrapnel Launcher Mining Claw Peak State ------------ > --- POWER ------------ Heavy Ion Engine > --- PROPULSION ------- Wheel Subdweller Monowheel > --- UTILITY ---------- Humpback > --- WEAPON ----------- Subdweller Machine Gun Barrage Gun > --- INVENTORY -------- Light Ion Engine Heavy Ion Engine Subdweller Power Source Subdweller Power Source Subdweller Power Source Light Treads Wheel Compact Wheel Subdweller Monowheel Subdweller Monowheel Flightbrick Improved Heat Sink Improved Heat Sink Large Storage Unit Humpback Subdweller Optics Hacking Suite Improved Medium Laser Improved Medium Laser Subdweller Laser Subdweller Laser Subdweller Beam Cannon Battle Rifle Flak Gun Improved Light Cannon Improved Light Cannon Battle Cannon Subdweller Shrapnel Launcher Mining Claw [Rating: 22] Favorites ----------- Power Heavy Ion Engine Engine Heavy Ion Engine Propulsion Light Treads Treads Light Treads Wheel Subdweller Monowheel Utility Scrap Shield Device ECM Suite Storage Humpback Protection Scrap Shield Weapon Improved Light Cannon Energy Gun Medium Laser Energy Cannon Subdweller Beam Cannon Ballistic Gun Subdweller Machine Gun Ballistic Cannon Improved Light Cannon Launcher Subdweller Shrapnel Launcher Slashing Weapon Mining Claw Build | -11 -10 -10 -7 ------- Run | Yrd Mat Sub Rec Slots Evolved . | . . . . Power . | . . . . Propulsion . | . . . . Utility . | . . . . Weapon . | . . . . Parts Attached 36 | 6 8 18 4 Power 3 | 1 1 . 1 Engine 3 | 1 1 . 1 Core . | . . . . Reactor . | . . . . Propulsion 6 | 2 . 3 1 Treads 3 | 2 . 1 . Leg . | . . . . Wheel 3 | . . 2 1 Hover . | . . . . Flight . | . . . . Utility 8 | 1 3 4 . Device 1 | . 1 . . Storage 5 | 1 2 2 . Processor . | . . . . Hackware . | . . . . Protection 2 | . . 2 . Artifact . | . . . . Weapon 19 | 2 4 11 2 Energy Gun 4 | 1 2 1 . Energy Cannon 1 | . . 1 . Ballistic Gun 3 | 1 . 1 1 Ballistic Cannon 6 | . 2 3 1 Launcher 3 | . . 3 . Special Weapon . | . . . . Impact Weapon . | . . . . Slashing Weapon 2 | . . 2 . Piercing Weapon . | . . . . Special Melee Weapon . | . . . . Unidentified Prototypes 2 | . 2 . . Parts Lost 5 | . . 4 1 Power . | . . . . Propulsion 2 | . . 2 . Utility 1 | . . 1 . Weapon 2 | . . 1 1 Highest Loss Streak 2 | . . 2 1 To Critical Strikes . | . . . . Average Slot Usage (%) 86 | . 94 83 83 Engine 13 | . 13 14 12 Treads 20 | . 28 19 . Wheel 6 | . . 6 28 Device 1 | . 8 . . Storage 8 | . 14 5 14 Protection 6 | . . 8 . Energy Gun 1 | . 4 . . Energy Cannon 2 | . . 3 . Ballistic Gun 6 | . 4 5 25 Ballistic Cannon 14 | . 19 13 1 Slashing Weapon 3 | . . 4 . Peak Build Rating 22 | 6 13 20 22 Average Rating 13 | 4 10 13 20 On Entrance 9 | . 6 13 20 Naked Turns . | . . . . Heaviest Build 220 | 12 38 220 220 Greatest Support 40 | 40 40 40 30 Greatest Overweight (x) 10 | . . 10 8 Average Overweight (x) 1 | . . 2 7 Largest Inventory Capacity 35 | 8 15 35 35 Average Capacity 15 | 7 10 15 35 Most Carried 35 | 4 10 28 35 Average Carried 10 | 2 7 10 32 Final Capacity 35 | 8 15 35 35 Final Carried 34 | 4 10 28 34 Class Distribution -------------------- 71% | Mutant 28% | Hauler-Mutant Dominant Class ---------------- Mutant | -10/Materials Mutant | -10/Subcaves Hauler-Mutant | -7/Recycling Resources | -11 -10 -10 -7 ----------- Run | Yrd Mat Sub Rec Matter Collected 1407 | 221 265 633 288 Remotely . | . . . . Salvage Created 1024 | . 333 343 348 Parts 53 | . 19 19 15 Haulers Intercepted . | . . . . Recyclers Shooed 1 | . . . 1 Parts Field Recycled . | . . . . Retrieved Matter . | . . . . Parts Self-Destructed 11 | . . 11 . Prevented . | . . . . Kills | -11 -10 -10 -7 ------- Run | Yrd Mat Sub Rec Combat Hostiles Destroyed 24 | . 9 14 1 Guns 6 | . 2 3 1 Cannons 15 | . 7 8 . AOE 3 | . . 3 . Classes Destroyed 8 | . 3 4 1 Tunneler 1 | . 1 . . Recycler 4 | . . . 4 Operator 1 | . 1 . . Turret 2 | . . 2 . Swarmer 4 | . . 4 . Grunt 10 | . 9 1 . Sentry 2 | . . 1 1 Subdweller 8 | . . 8 . Best Kill Streak 7 | . 2 7 2 Combat Bots Only 7 | . 2 7 1 Max Kills in Single Turn 1 | . 1 1 1 Gunslinging . | . . . . Exploded 1 | . . 1 . Melee . | . . . . Uniques/NPCs Destroyed . | . . . . Combat | -11 -10 -10 -7 -------- Run | Yrd Mat Sub Rec Hostile Shots Fired 206 | . 21 89 96 Missed 72 | . 5 30 37 Damage Taken 2073 | . 257 1421 395 Core 251 | . 35 136 80 Absorbed by Shields . | . . . . Redirected to Shielding 4 | . . 4 . Core Remaining (%) 100 | 100 . . . Volleys Fired 104 | . 36 51 17 Largest 2 | . 2 2 2 Hottest 119 | . 78 119 67 Shots Fired 207 | . 72 101 34 Gun 58 | . 8 20 30 Cannon 140 | . 64 72 4 Launcher 9 | . . 9 . Special . | . . . . Kinetic 187 | . 68 85 34 Thermal 20 | . 4 16 . Explosive . | . . . . Electromagnetic . | . . . . Robot Hit Streak 12 | . 8 7 12 Robot Miss Streak 4 | . 2 4 2 Penetration Max . | . . . . Secondary Targets . | . . . . Shots Hit Robots 102 | . 27 51 24 Core Hits 46 | . 15 23 8 Critical Kills 1 | . . 1 . Critical Parts Destroyed . | . . . . Critical Strikes 3 | . 1 2 . Destroy 1 | . . 1 . Blast 2 | . 1 1 . Melee Attacks 10 | . . 10 . Impact . | . . . . Slashing 10 | . . 10 . Piercing . | . . . . Sneak Attacks . | . . . . Combat Hostiles . | . . . . Follow-up Attacks . | . . . . Damage Inflicted 2472 | . 580 1449 443 Guns 694 | . 80 256 358 Cannons 1260 | . 488 687 85 Explosions 506 | . . 506 . Melee . | . . . . Ramming 12 | . 12 . . Kinetic 2251 | . 530 1278 443 Thermal 209 | . 38 171 . Explosive . | . . . . Electromagnetic . | . . . . Impact . | . . . . Slashing . | . . . . Piercing . | . . . . Highest Corruption 5 | . . 5 5 Average Corruption 5 | . . 5 5 Corruption Purged . | . . . . Corruption Blocked . | . . . . Effects 49 | . . 41 8 Message Errors 15 | . . 13 2 Matter Fused 16 | . . 15 1 Heat Flow Errors 3 | . . 2 1 Energy Discharges 3 | . . 3 . Data Loss (minor) 7 | . . 4 3 Data Loss (major) 3 | . . 2 1 Misfires 2 | . . 2 . Overload Shots . | . . . . Overflow Damage 37 | . 9 28 . Projectiles 9 | . 9 . . Explosions 28 | . . 28 . Melee . | . . . . Knockbacks 15 | . 10 5 . Impact . | . . . . Kinetic 13 | . 8 5 . Secondary 2 | . 2 . . Self-Inflicted Damage 35 | . . 35 . Shots 1 | . . 1 . Rammed 1 | . 1 . . Targets Rammed 1 | . 1 . . Kicked . | . . . . Crushed . | . . . . Highest Temperature 240 | . 150 240 89 Average Temperature 35 | . 33 52 27 Received Heat Transfer 429 | . 120 231 78 Siege Activations . | . . . . Robots Corrupted . | . . . . Combat Hostiles . | . . . . Parts Fried . | . . . . Impact Corruptions . | . . . . Robots Melted . | . . . . Combat Hostiles . | . . . . Parts Melted . | . . . . Heat Transferred 333 | . 111 222 . Parts Sabotaged . | . . . . Parts Stolen . | . . . . Parts Stripped . | . . . . Power Chain Reactions . | . . . . Alert | -11 -10 -10 -7 ------- Run | Yrd Mat Sub Rec Peak Influence 162 | . 162 . 127 Initial 86 | . . . 86 Average 65 | . 55 . 114 Maximum Alert Level . | . . . . Low Security (%) 100 | 100 100 . 100 Level 1 . | . . . . Level 2 . | . . . . Level 3 . | . . . . Level 4 . | . . . . Level 5 . | . . . . High Security . | . . . . Max Security . | . . . . Squads Dispatched 3 | . 3 . . Investigation 2 | . 2 . . Extermination . | . . . . Reinforcement 1 | . 1 . . Assault . | . . . . Garrison . | . . . . Intercept . | . . . . Searches Triggered . | . . . . Construction Impeded . | . . . . Haulers Reinforced . | . . . . Active Scanning Responses . | . . . . Cargo Convoy Interrupts . | . . . . Stealth | -11 -10 -10 -7 --------- Run | Yrd Mat Sub Rec Distress Signals 1 | . 1 . . Communications Jammed . | . . . . Distress Signals . | . . . . Times Spotted 42 | . 19 21 2 Peak Tracking Total 6 | . 3 6 1 Tactical Retreats 5 | . 1 4 . Traps | -11 -10 -10 -7 ------- Run | Yrd Mat Sub Rec Traps Triggered 4 | . 2 2 . Indirectly . | . . . . Trap Hack Attempts . | . . . . Triggered . | . . . . Disarmed . | . . . . Reprogrammed . | . . . . Reused . | . . . . Traps Extracted . | . . . . Installed . | . . . . Triggered . | . . . . Machines | -11 -10 -10 -7 ---------- Run | Yrd Mat Sub Rec Machines Disabled 2 | . . 2 . Max in Single Turn 1 | . . 1 . Machines Repaired . | . . . . Machines Dismantled . | . . . . Machines Sabotaged . | . . . . Overloaded Fab Kills . | . . . . Hacking | -11 -10 -10 -7 --------- Run | Yrd Mat Sub Rec Machines Accessed 10 | . 6 2 2 Terminals 5 | . 5 . . Fabricators . | . . . . Repair Stations . | . . . . Recycling Units 3 | . 1 . 2 Scanalyzers . | . . . . Garrison Access . | . . . . Total Hacks 28 | . 21 5 2 Successful 18 | . 11 5 2 Failed 10 | . 10 . . Catastrophic 1 | . 1 . . Database Lockouts . | . . . . Manual 18 | . 18 . . Terminals 18 | . 18 . . Fabricators . | . . . . Repair Stations . | . . . . Recycling Units 5 | . 3 . 2 Scanalyzers . | . . . . Garrison Access . | . . . . Terminal Hacks 10 | . 5 5 . Record 4 | . . 4 . Robot Schematic 3 | . 3 . . Robot Analysis 1 | . 1 . . Zone Layout 1 | . 1 . . Derelict Proto ID Bank 1 | . . 1 . Fabricator Hacks . | . . . . Repair Station Hacks . | . . . . Recycling Unit Hacks 2 | . . . 2 Retrieve Matter 2 | . . . 2 Scanalyzer . | . . . . Garrison Access Hacks . | . . . . Unauthorized Hacks 6 | . 6 . . Terminals 4 | . 4 . . Botnet 4 | . 4 . . Fabricators . | . . . . Repair Stations . | . . . . Recycling Units 2 | . 2 . . Reject 1 | . 1 . . Mask 1 | . 1 . . Scanalyzers . | . . . . Garrison Access . | . . . . Data Cores Recovered . | . . . . Used . | . . . . Hacking Detections 6 | . 6 . . Full Trace Events 3 | . 3 . . Feedback Events . | . . . . Feedback Blocked . | . . . . Robot Schematics Acquired 3 | . 3 . . Robots Built . | . . . . Authchips . | . . . . Time . | . . . . Total Robot Build Rating . | . . . . Part Schematics Acquired . | . . . . Parts Built . | . . . . Authchips . | . . . . Time . | . . . . Total Part Build Rating . | . . . . Parts Repaired . | . . . . Time . | . . . . Parts Recycled . | . . . . Recycled Matter . | . . . . Retrieved Matter . | . . . . Retrieved Components . | . . . . Parts Scanalyzed . | . . . . Part Schematics Acquired . | . . . . Parts Damaged . | . . . . Bothacking | -11 -10 -10 -7 ------------ Run | Yrd Mat Sub Rec Used RIF Installer . | . . . . Robots Hacked . | . . . . Non-combat . | . . . . Combat . | . . . . Robot Hacks Applied . | . . . . Relay Couplers Released . | . . . . Fabnet Peak Effective % . | . . . . Robots Rewired . | . . . . Allies Hacked . | . . . . Hacks Repelled . | . . . . Allies | -11 -10 -10 -7 -------- Run | Yrd Mat Sub Rec Total Allies . | . . . . Largest Group . | . . . . Highest-Rated Group . | . . . . Highest-Rated Ally . | . . . . Total Orders . | . . . . Ally Attacks . | . . . . Total Damage . | . . . . Kills . | . . . . Allies Corrupted . | . . . . Allies Melted . | . . . . Intel | -11 -10 -10 -7 ------- Run | Yrd Mat Sub Rec Robot Analysis Total 1 | . 1 . . Derelict Logs Recovered 1 | . . 1 . Drone Launches . | . . . . Drone Recoveries . | . . . . Exploration | -11 -10 -10 -7 ------------- Run | Yrd Mat Sub Rec Turns Passed 5910 | 98 1321 4090 401 Spaces Moved 3217 | 55 735 2265 162 Core 2 | 2 . . . Treads 2426 | 53 735 1638 . Legs . | . . . . Wheels 789 | . . 627 162 Hover . | . . . . Flight . | . . . . Fastest Speed 50 | 50 160 120 167 Average Speed 168 | 156 160 169 198 Slowest Speed 260 | 160 160 260 210 Overloaded Moves . | . . . . Propulsion Burnouts . | . . . . Robots Hopped . | . . . . Cave-ins Triggered 1 | . . 1 . Exploration Rate (%) 47 | 4 85 77 23 Regions Visited 3 Branch Regions 2 Pre-discovered Areas 1 | . . 1 . Known Exits Taken . | . . . . Unknown Exits Taken 3 | 1 1 1 . Scrap Searched 3 | . . 3 . Spaces Dug 1 | . 1 . . Terrain Destroyed 130 | . 5 124 1 Melee . | . . . . Projectile 12 | . 5 6 1 AOE 118 | . . 118 . Terrain Rammed . | . . . . Walls Destroyed . | . . . . Machines Disabled . | . . . . Actions | -11 -10 -10 -7 --------- Run | Yrd Mat Sub Rec Total 3483 | 64 811 2399 209 Wait 43 | . 12 13 18 Move 3214 | 54 734 2264 162 Hop . | . . . . Pick Up 52 | 4 10 32 6 Fast Attach 16 | 6 5 4 1 Attach 6 | . 1 3 2 Detach 3 | . 1 . 2 Swap 14 | . 2 11 1 Drop 16 | . 9 7 . Fire 104 | . 36 51 17 Melee 10 | . . 10 . Ram . | . . . . Kick . | . . . . Crush 1 | . 1 . . Escape Stasis . | . . . . Rewire . | . . . . Trap . | . . . . Miscellaneous 4 | . . 4 . Route ------- -11/Scrapyard -10/Materials (discovered 5 exits: [*Mat x3] / [*Min] / *Sub) -10/Subcaves (discovered 3 exits: [*Mat x2] / *Rec) -7/Recycling History --------- Turn | Location | Event 47 | -11/Scrapyard | Discovered new exit (range 15) 99 | -11/Scrapyard | Entered Materials 243 | -10/Materials | Discovered new exit (range 7) 309 | -10/Materials | Build established: Mutant 379 | -10/Materials | Discovered new exit (range 7) 713 | -10/Materials | Discovered new exit (range 4) 716 | -10/Materials | Discovered new exit (range 16) 1416 | -10/Materials | Discovered new exit (range 2) 1420 | -10/Materials | Entered Subcaves 1583 | -10/Subcaves | Disturbed a concealed Subdweller 1910 | -10/Subcaves | Shifting Twisted Machinery released Barrage Gun 2413 | -10/Subcaves | Visited 4L-MR0's lab 2529 | -10/Subcaves | Learned Materials stockpile data 3428 | -10/Subcaves | Shifting Twisted Machinery released Mak. Kinetic Plating 3430 | -10/Subcaves | Shifting Twisted Machinery released Sub. Beam Cannon 3578 | -10/Subcaves | Discovered new exit (range 14) 3882 | -10/Subcaves | Visited Clippyterm 3886 | -10/Subcaves | Learned location of Deep Caves (-7) 3988 | -10/Subcaves | Shifting Twisted Machinery released Battle Rifle 3996 | -10/Subcaves | Shifting Twisted Machinery released Sub. Monowheel 4023 | -10/Subcaves | Crushed by falling debris 4023 | -10/Subcaves | Core integrity fell below 50% 4103 | -10/Subcaves | Discovered new exit (range 6) 4509 | -10/Subcaves | Ambushed by Subdweller buried in earth 4515 | -10/Subcaves | Discovered new exit (range 8) 4543 | -10/Subcaves | Build established: Hauler-Mutant 4557 | -10/Subcaves | Destroyed 7 combat bots 5276 | -10/Subcaves | Found Flightbrick 5510 | -10/Subcaves | Entered Recycling 5905 | -7/Recycling | Core integrity fell below 20% 5911 | -7/Recycling | Destroyed by Y-54 Guardian with Flak Gun Last Messages --------------- data lost. 05630_ Acquired 81 matter. 05632_ Acquired 52 matter. 05637_ Acquired Unknown Device. 05640_ Acquired Unknown Wheel. 05640_ U-05 Engineer builds a Wall. 05644_ Acquired Unknown Wheel. 05644_ Identified Com. Wheel. 05647_ Acquired 20 matter. 05654_ A16W95D:=A4TU MM>5V|&SHJHDYXSEH0%S 0F4Y 05656_ Acquired Lgt. Treads. 05684_ CKT HO>0:D%I%BLVNMBAE,HG LIZ7WSL OI5QN 05702_ System corrupted: Heat flow error (+108). 05770_ R-06 Scavenger destroyed. 05773_ Acquired 6 matter. 05799_ R-06 Scavenger collects Com. Wheel. 05840_ System corrupted: Matter fused (-6). 05868_ Y-54 Guardian springs to life. 05874_ Sub. Machine Gun destroyed. 05891_ System corrupted: Component data lost. Map ----- +----------------------------------------------------+ | ?????????????????????????????????????????????????? | | ?????????????????????????????????????????????????? | | ?????????????????????????????????????????????????? | | ?????????????????????????????????????????????????? | | ?????????????????????????????????????????????????? | | ?????????????????????????????????????????????????? | | ?????????????????????????????????????????????????? | | ?????????????????????????????????????????????????? | | ?????????????????????????????????????????????????? | | ?????????????????????????????????????????????????? | | ??????????????????????????#??????????????????????? | | ?????????????????????????# ??????????????????????? | | ????????????????????????? ??????????????????????? | | ????????????????????????? ??????????????????????? | | ?????????????????##?????? ??????????????????????? | | ????????????##### ####??? ??????????????????????? | | ????????????# #???u ??????????????????????? | | ????????????# #??# ??????????????????????? | | ????????????# #??# #??????????????????????? | | ????????????# #??# #??????????????????????? | | ????????????# #??# #??????????????????????? | | ????????????# #??# #??????????????????????? | | ????????????# #??#%#??????????????????????? | | ????????????# #??#Y#??????????????????????? | | ????????????# #??# #??????????????????????? | | ????????????##+#######?##@##?????????????????????? | | ????????????# ######## #?????????????????????? | | ????????????# #?????????????????????? | | ????????????# ######## #?????????????????????? | | ????????????#####??????## ##?????????????????????? | | ????????????????????????# #??????????????????????? | | ????????????????????????# #??????????????????????? | | ????????????????????????# #??????????????????????? | | ????????????????????????# #??????????????????????? | | ????????????????????????# #??????????????????????? | | ????????????????????????# #??????????????????????? | | ????????????????????????# #??????????????????????? | | ????????????????????????#%#??????????????????????? | | ????????????????????????# #??????????????????????? | | ????????????????????????# #??????????????????????? | | ????????????????????????# #??????????????????????? | | ????????????????????????# ###########????????????? | | ?????????####???????????# ## #????????????? | | ?#???????#"""???????????# ## ##???????????? | | ? ####"Y"####??????## ## #???????????? | | ? " ######## # #????????????? | | ??"T + #????????????? | | ######## # #????????????? | | ? ##!!!### ##??????##### #????????????? | | ???????#?????# #???????????# #???????????? | +----------------------------------------------------+ Best States ------------- Heat Dissipation 25 Energy Generation 14 Energy Capacity 530 Matter Stores 300 Matter Capacity 300 Sight Range 16 Terrain Scan Density 10 ECM Strength 1 Armor Coverage 800 Core Shielding 20 Evasion (%) 40 Recoil Reduction 2 Item Schematics ----------------- None Robot Schematics ------------------ G-34 Mercenary | -10/Materials | Hacked S-10 Pest | -10/Materials | Hacked A-02 Transporter | -10/Materials | Hacked Fabricated ------------ Nothing Alien Tech Used ----------------- None Achievements -------------- Packrat Tank root@ Challenges ------------ None Game ------ Seed ThermicTiamatEngine Manual? 0 Play Time 00:31:04 Cumulative 17.8 hours Start 2024.08.14 @ 07:53:23 End 2024.08.14 @ 08:22:17 Sessions 1 Manual Loads 0 Difficulty Rogue Special Mode None Game No. 33 Rogue 33 Adventurer 0 Explorer 0 Win Type - Total 0 Types 0/0/0/0/0/0/0/0/0 Lore% 28 Gallery% 20 Achievement% 20 Wizard Run 0 Options --------- Layout 2 ASCII 0 Keyboard 1 Movement Arrows Keybinds 0 Fullscreen 2 Font 32/SmallcapsGlow Map View 50x44 Zoom Use 0% Tactical HUD 1 Map Filters NONE Filters NONE Steam 1 RUN: b3731070-c3b2-49ab-929a-24750c2aac97